bitfinex-derivatives/quotes_ETHF0:USTF0_20260123
["timestamp","ask_amount","ask_price","bid_price","bid_amount"]
[1769177771096,6.64799977,2934.9,2933.6,0.91051696]
[1769177771097,0.36022584,2934.6,2933.6,0.91051696]
[1769177771401,6.64799977,2934.9,2933.6,0.91051696]
[1769177771600,1.28929716,2934.8,2933.6,0.91051696]
[1769177771899,1.28929716,2934.7,2933.6,0.91051696]
[1769177772101,0.36063399,2934.6,2933.6,0.91051696]
[1769177772302,0.35942287,2934.5,2933.6,0.91051696]
[1769177772501,6.64799977,2934.9,2933.6,0.91051696]
[1769177772699,0.35940925,2934.8,2933.9,0.91051696]
[1769177773003,0.00510742,2934.9,2933.9,0.91051696]
[1769177773301,0.35941972,2934.8,2933.9,0.91051696]
[1769177773603,0.00510742,2934.9,2933.9,0.91051696]
[1769177773800,0.35931546,2934.8,2933.9,0.91051696]
[1769177774100,0.14999977,2934.9,2933.6,0.91051696]
[1769177774300,0.14489235,2934.4,2933.1,7.34312774]
[1769177774496,0.14489235,2934.4,2933.0,3.41629768]
[1769177775289,0.14489235,2934.8,2933.5,0.91051696]
[1769177775490,0.00510742,2934.9,2933.8,0.91051696]
[1769177775703,0.35921857,2934.8,2933.5,0.91051696]
[1769177775899,0.14999977,2934.9,2933.5,0.91051696]
[1769177776091,0.35920924,2934.8,2933.5,0.91051696]
[1769177776296,0.14999977,2934.9,2933.5,0.91051696]
[1769177776497,0.35915434,2934.8,2933.5,0.91051696]
[1769177776798,0.14999977,2934.9,2933.5,0.91051696]
[1769177776998,0.35920018,2934.8,2933.5,0.91051696]
[1769177777197,0.14999977,2934.9,2933.5,0.91051696]
[1769177777396,0.00510742,2934.9,2933.8,0.91051696]
[1769177778897,0.00510742,2934.9,2934.1,0.91051696]
[1769177784104,1.22594931,2935.7,2934.4,0.91051696]
[1769177784302,0.14489235,2935.5,2934.2,0.00510742]
[1769177784905,1.08105696,2935.7,2934.2,0.15717406]
[1769177785105,0.35739681,2935.6,2934.2,0.15717406]
[1769177785304,0.35739681,2935.5,2934.2,0.15717406]
[1769177785609,1.22594931,2935.7,2934.2,0.15717406]
[1769177785809,0.35728743,2935.6,2934.2,0.15717406]
[1769177786012,0.14489235,2935.6,2934.2,0.00510742]
[1769177789210,1.05540931,2935.4,2934.2,0.00510742]
[1769177790008,0.14489235,2935.4,2934.2,0.00510742]
[1769177793811,0.15151333,2935.8,2934.4,0.91051696]
[1769177794012,0.35699808,2935.7,2934.4,0.91051696]
[1769177794200,0.15151333,2935.8,2934.4,0.91051696]
[1769177794403,0.35699816,2935.7,2934.4,0.91051696]
[1769177794607,0.15151333,2935.8,2934.4,0.91051696]
[1769177794801,0.35705183,2935.7,2934.4,0.91051696]
[1769177795009,0.15151333,2935.8,2934.4,0.91051696]
[1769177795208,0.35705183,2935.7,2934.4,0.91051696]
[1769177795507,0.15151333,2935.8,2934.4,0.91051696]
[1769177795706,0.35706262,2935.7,2934.4,0.91051696]
[1769177796010,0.15151333,2935.8,2934.4,0.91051696]
[1769177796212,0.35706238,2935.7,2934.4,0.91051696]
[1769177796412,0.15151333,2935.8,2934.4,0.91051696]
[1769177796711,0.35708369,2935.7,2934.4,0.91051696]
[1769177796910,0.15151333,2935.8,2934.4,0.91051696]
[1769177797113,0.35708362,2935.7,2934.4,0.91051696]
[1769177797410,0.15151333,2935.8,2934.4,0.91051696]
[1769177797611,0.35712062,2935.7,2934.4,0.91051696]
[1769177797809,0.15151333,2935.8,2934.4,0.91051696]
[1769177798011,0.15151333,2935.8,2934.7,0.91051696]
[1769177801014,0.00337692,2935.8,2934.7,0.91051696]
[1769177803819,0.00337692,2935.8,2934.7,1.05385481]
[1769177804717,0.00337692,2935.8,2935.0,0.91051696]
[1769177804924,0.00337692,2935.8,2934.7,0.14333785]
[1769177807423,0.00337692,2935.8,2934.6,5.1836]
[1769177807721,0.00337692,2935.8,2934.6,8.5946]
[1769177812518,0.15151333,2935.8,2934.6,0.1706]
[1769177813726,0.00337692,2935.8,2934.6,0.1706]
[1769177816225,0.00337692,2935.8,2934.6,0.31393785]
[1769177816816,0.00337692,2935.8,2934.7,0.14333785]
[1769177818724,0.00337692,2935.8,2934.7,0.31393785]
[1769177819025,0.00337692,2935.8,2934.8,0.14333785]
[1769177820218,0.00337692,2935.8,2934.7,0.1706]
[1769177824531,0.00337692,2935.8,2934.8,0.14665465]
[1769177824920,0.15109596,2936.4,2935.0,0.14665465]
[1769177825121,0.35799186,2936.3,2935.0,0.14665465]
[1769177825319,0.35799186,2936.2,2935.0,0.14665465]
[1769177825528,0.15109596,2936.4,2935.0,0.14665465]
[1769177825529,0.35799186,2936.1,2935.0,0.14665465]
[1769177825730,0.15109596,2936.4,2935.0,0.14665465]
[1769177825929,0.35801157,2936.3,2935.0,0.14665465]
[1769177826132,0.35801157,2936.2,2935.0,0.14665465]
[1769177826431,0.0031603,2936.3,2935.0,0.14665465]
[1769177826625,0.35802416,2936.2,2935.0,0.14665465]
[1769177826832,0.35802647,2936.1,2935.0,0.14665465]
[1769177827021,0.0031603,2936.3,2935.0,0.14665465]
[1769177827226,0.35802634,2936.2,2935.0,0.14665465]
[1769177827426,0.35802634,2936.1,2935.0,0.14665465]
[1769177827635,0.0031603,2936.3,2935.0,0.14665465]
[1769177827932,0.35806012,2936.2,2935.0,0.14665465]
[1769177828132,0.35806012,2936.1,2935.0,0.14665465]
[1769177828334,0.0031603,2936.3,2935.0,0.14665465]
[1769177828526,0.35809996,2936.2,2935.0,0.14665465]
[1769177828726,0.35809996,2936.1,2935.0,0.14665465]
[1769177828928,0.0031603,2936.3,2935.0,0.14665465]
[1769177829128,0.35810019,2936.2,2935.0,0.14665465]
[1769177829328,0.35810019,2936.1,2935.0,0.14665465]
[1769177829529,0.0031603,2936.3,2935.0,0.14665465]
[1769177829736,0.35810497,2936.2,2935.0,0.14665465]
[1769177829937,0.35810497,2936.1,2935.0,0.14665465]
[1769177830137,0.0031603,2936.3,2935.0,0.14665465]
[1769177830436,0.35810576,2936.2,2935.0,0.14665465]
[1769177830638,0.35810576,2936.1,2934.9,3.23741118]
[1769177830932,0.14982029,2936.3,2934.9,3.23741118]
[1769177831139,0.35812793,2936.2,2934.9,3.23741118]
[1769177831335,0.35812793,2936.1,2934.9,3.23741118]
[1769177831534,0.14982029,2936.3,2934.9,3.23741118]
[1769177831733,0.0031603,2936.3,2935.3,0.13805686]
[1769177831938,0.0031603,2936.3,2935.3,0.14185358]
[1769177832137,0.0031603,2936.3,2935.3,0.00379672]
[1769177833032,0.0031603,2936.3,2935.3,0.14185358]
[1769177834541,0.0031603,2936.3,2935.3,0.00379672]
[1769177834741,0.50455359,2936.2,2935.3,0.00379672]
[1769177834941,0.3578936,2936.1,2935.3,0.00379672]
[1769177835240,0.14665999,2936.2,2935.3,0.00379672]
[1769177835437,0.35784465,2936.1,2935.3,0.00379672]
[1769177835637,0.14665999,2936.2,2935.3,0.00379672]
[1769177835941,0.35784455,2936.1,2935.3,0.00379672]
[1769177836142,0.14665999,2936.2,2935.3,0.00379672]
[1769177836440,0.35785944,2936.1,2935.3,0.00379672]
[1769177836636,0.14665999,2936.2,2935.3,0.00379672]
[1769177836841,0.35790886,2936.1,2935.3,0.00379672]
[1769177837142,0.14665999,2936.2,2935.3,0.00379672]
[1769177837338,0.35794584,2936.1,2935.3,0.00379672]
[1769177837546,0.14665999,2936.0,2935.3,0.00379672]
[1769177839143,0.0031603,2936.3,2935.3,1.05109106]
[1769177839442,0.14665999,2936.9,2935.4,0.13805686]
[1769177839742,0.35799951,2936.8,2935.4,3.20487804]
[1769177839945,0.35799951,2936.7,2935.4,3.20487804]
[1769177840242,0.14665999,2936.9,2935.8,0.00510742]
[1769177840442,0.35500822,2936.8,2935.8,0.00510742]
[1769177840744,0.35500822,2936.7,2935.8,0.00510742]
[1769177840944,0.14665999,2936.9,2935.8,0.00510742]
[1769177841144,0.35502417,2936.8,2935.8,0.00510742]
[1769177841339,0.14665999,2936.9,2935.8,0.00510742]
[1769177841535,0.35493572,2936.8,2935.8,0.00510742]
[1769177841740,0.14665999,2936.9,2935.8,0.00510742]
[1769177841943,0.35493626,2936.8,2935.8,0.00510742]
[1769177842243,0.14665999,2936.9,2935.8,0.00510742]
[1769177842442,0.35485066,2936.8,2935.8,0.00510742]
[1769177842644,0.14665999,2936.9,2935.8,0.00510742]
[1769177842839,0.35485096,2936.8,2935.8,0.00510742]
[1769177843045,0.14665999,2936.9,2935.8,0.00510742]
[1769177843242,0.35485108,2936.8,2935.8,0.00510742]
[1769177843444,0.14665999,2936.9,2935.8,0.00510742]
[1769177843645,0.50146022,2936.8,2935.8,0.00510742]
[1769177843847,0.14665999,2936.7,2935.8,0.00510742]
[1769177845554,0.14665999,2937.4,2935.8,0.00510742]
[1769177845849,0.17043,2937.6,2935.8,0.00510742]
[1769177845850,1.42972531,2937.3,2935.8,0.14316428]
[1769177846045,1.28306532,2937.2,2935.8,0.14316428]
[1769177846245,0.35476819,2937.1,2935.8,0.14316428]
[1769177846448,0.14665999,2937.3,2935.8,0.14316428]
[1769177846649,0.35478783,2937.2,2935.8,0.31369428]
[1769177846953,0.35478783,2937.1,2935.9,5.037]
[1769177847145,0.14665999,2937.3,2935.9,5.037]
[1769177847346,0.35314166,2937.2,2935.9,5.037]
[1769177847547,0.35314166,2937.1,2935.9,5.037]
[1769177847851,0.14665999,2937.3,2935.9,5.037]
[1769177848041,0.35315268,2937.2,2935.9,5.037]
[1769177848245,0.35315268,2937.1,2935.9,5.037]
[1769177848445,0.14665999,2937.3,2935.9,5.037]
[1769177848856,0.14665999,2937.3,2935.9,5.20753]
[1769177849472,0.14665999,2937.3,2936.0,6.3]
[1769177849762,0.14665999,2937.3,2935.9,5.20753]
[1769177850257,0.14665999,2937.3,2935.9,11.50753]
[1769177851562,0.17043,2937.6,2935.9,11.64558686]
[1769177851563,0.31708999,2937.6,2935.9,11.64558686]
[1769177851764,0.14665999,2937.4,2935.9,11.64558686]
[1769177854153,0.14665999,2937.4,2936.0,0.31282889]
[1769177854350,0.14736915,2938.1,2936.1,0.14230889]
[1769177854555,0.14736915,2937.9,2936.1,0.31282889]
[1769177854854,1.42639219,2937.8,2936.2,0.14230889]
[1769177855054,0.3527406,2937.7,2936.2,0.14230889]
[1769177855249,0.14736915,2937.8,2936.2,0.14230889]
[1769177855451,0.3526665,2937.7,2936.2,0.14230889]
[1769177855659,0.14736915,2937.8,2936.3,6.3]
[1769177856555,0.14736915,2937.8,2936.3,6.44230889]
[1769177857057,0.14736915,2937.8,2936.3,6.61281889]
[1769177857762,0.14736915,2937.8,2936.4,3.409]
[1769177857954,6.6684,2938.2,2936.4,3.55130889]
[1769177858160,0.35253346,2938.1,2936.5,0.14230889]
[1769177858361,6.81576915,2938.2,2936.5,0.14230889]
[1769177858560,0.49982464,2938.1,2936.5,0.14230889]
[1769177858760,0.14736915,2938.1,2936.5,0.14230889]
[1769177862570,0.14736915,2938.1,2936.6,0.14230889]
[1769177865772,0.14736915,2937.8,2936.1,3.409]
[1769177865982,0.14736915,2937.8,2936.1,8.48]
[1769177866875,0.14736915,2937.6,2936.2,0.90850229]
[1769177869169,0.14736915,2937.6,2936.5,0.90850229]
[1769177869375,0.14736915,2937.9,2936.5,0.90850229]
[1769177872780,0.14736915,2937.9,2936.5,5.99550229]
[1769177874180,0.35317732,2937.8,2936.5,5.99550229]
[1769177874384,0.14736915,2937.9,2936.5,5.99550229]
[1769177874681,0.35317723,2937.8,2936.5,5.99550229]
[1769177874980,0.14736915,2937.9,2936.5,5.99550229]
[1769177875182,0.50054652,2937.8,2936.5,5.99550229]
[1769177875476,0.90850229,2937.4,2936.2,3.23733118]
[1769177875684,0.14736915,2937.3,2936.2,6.17301229]
[1769177876079,0.14736915,2937.8,2936.5,0.90850229]
[1769177876372,0.17042,2937.9,2936.8,0.90850229]
[1769177876582,0.14736915,2938.1,2936.8,0.90850229]
[1769177876779,0.35340858,2938.0,2936.8,0.90850229]
[1769177876978,0.35340858,2937.9,2936.8,0.90850229]
[1769177877179,0.3534836,2937.8,2936.8,0.90850229]
[1769177877382,0.14736915,2938.1,2936.8,0.90850229]
[1769177877682,0.35350199,2938.0,2936.8,0.90850229]
[1769177877875,0.35350199,2937.9,2936.8,0.90850229]
[1769177878076,0.14736915,2938.1,2936.8,0.90850229]
[1769177878277,0.353582,2938.0,2936.8,0.90850229]
[1769177878479,0.353582,2937.9,2936.8,0.90850229]
[1769177878677,0.14736915,2938.1,2936.8,0.90850229]
[1769177878974,0.35357635,2938.0,2936.8,0.90850229]
[1769177879177,0.35357635,2937.9,2936.8,0.90850229]
[1769177879376,0.14736915,2938.1,2936.8,0.90850229]
[1769177879582,0.50096653,2938.0,2936.8,0.90850229]
[1769177879882,0.35359738,2937.9,2936.8,0.90850229]
[1769177881180,6.498,2938.2,2936.8,0.90850229]
[1769177881380,1.28231567,2938.1,2936.8,0.90850229]
[1769177881685,0.35365181,2938.0,2936.8,0.90850229]
[1769177881885,0.35365181,2937.9,2936.8,0.90850229]
[1769177882093,0.14736915,2938.4,2937.4,0.90850229]
[1769177882390,0.35359109,2938.3,2937.4,0.91114333]
[1769177882687,0.14736915,2938.4,2937.4,0.91114333]
[1769177882890,0.14736915,2938.4,2937.6,0.00510742]
[1769177883191,1.0537382,2938.8,2937.6,0.00510742]
[1769177883486,0.35347806,2938.7,2937.7,0.90850229]
[1769177883687,0.14523591,2938.8,2937.6,0.00510742]
[1769177883688,0.35347806,2938.6,2937.6,0.00510742]
[1769177883889,0.14523591,2938.8,2937.6,0.00510742]
[1769177884189,0.35346782,2938.7,2937.6,0.00510742]
[1769177884377,0.35346782,2938.6,2937.6,0.00510742]
[1769177884578,1.0537382,2938.8,2937.6,0.00510742]
[1769177884784,0.3533648,2938.7,2937.6,0.00510742]
[1769177884983,1.0537382,2938.8,2937.6,0.00510742]
[1769177884984,0.3533648,2938.6,2937.6,0.00510742]
[1769177885184,1.0537382,2938.8,2937.6,0.00510742]
[1769177885385,0.49848534,2938.7,2937.6,0.00510742]
[1769177885582,0.14523591,2938.7,2937.6,0.00510742]
[1769177889396,0.17035,2939.0,2937.7,0.90850229]
[1769177889600,0.3528771,2938.9,2937.7,0.90850229]
[1769177889801,0.3528771,2938.8,2937.7,0.90850229]
[1769177890094,0.31225054,2939.0,2937.7,0.90850229]
[1769177890294,0.35284177,2938.9,2937.7,0.90850229]
[1769177890488,0.31225054,2939.0,2937.7,0.90850229]
[1769177890687,0.35279197,2938.9,2937.7,0.90850229]
[1769177890889,0.14190054,2938.9,2937.7,0.90850229]
[1769177891700,0.14190054,2939.4,2938.3,0.90850229]
[1769177891901,0.14190054,2939.2,2937.7,9.40150229]
[1769177893201,0.14190054,2939.2,2937.8,6.3]
[1769177894003,0.14190054,2939.2,2938.0,0.90850229]
[1769177899305,0.14190054,2939.5,2938.0,0.90850229]
[1769177899505,0.14190054,2939.3,2938.0,0.90850229]
[1769177900903,0.14190054,2939.1,2937.8,6.47042]
[1769177901207,0.14190054,2939.1,2937.8,0.17042]
[1769177901407,0.14190054,2939.1,2937.8,5.26242]
[1769177902412,0.14190054,2939.1,2938.0,0.90850229]
[1769177904309,0.14190054,2939.4,2938.3,0.90850229]
[1769177907118,0.14190054,2939.4,2937.7,6.3]
[1769177907422,0.14190054,2939.1,2937.8,6.00450229]
[1769177907719,0.14190054,2939.1,2937.6,3.2423586]
[1769177907720,1.05040283,2938.6,2937.6,0.00510742]
[1769177907916,0.14190054,2938.5,2937.6,0.00510742]
[1769177908123,0.14190054,2939.0,2937.9,0.90850229]
[1769177909318,0.14190054,2939.4,2937.9,0.90850229]
[1769177909515,1.42288874,2939.3,2937.9,0.90850229]
[1769177909717,1.2809882,2939.2,2937.9,0.90850229]
[1769177909916,0.35315791,2939.1,2937.9,0.90850229]
[1769177910111,0.14190054,2939.3,2937.9,0.90850229]
[1769177910311,0.35314371,2939.2,2937.9,0.90850229]
[1769177910511,0.14190054,2939.3,2937.9,0.90850229]
[1769177910722,0.35314388,2939.2,2937.9,0.90850229]
[1769177910915,0.14190054,2939.3,2938.2,0.90850229]
[1769177911115,0.35314383,2939.2,2938.2,0.90850229]
[1769177911316,0.14190054,2939.3,2938.2,0.90850229]
[1769177911523,0.35332828,2939.2,2938.2,0.90850229]
[1769177911719,0.14190054,2939.3,2938.2,0.90850229]
[1769177911919,0.35332827,2939.2,2938.2,0.90850229]
[1769177912220,0.35343446,2939.1,2938.2,0.90850229]
[1769177912420,0.14190054,2939.3,2938.2,0.90850229]
[1769177912723,0.35343447,2939.2,2938.2,0.90850229]
[1769177912925,0.35343447,2939.1,2938.2,0.90850229]
[1769177913122,0.14190054,2939.3,2938.2,0.90850229]
[1769177913321,0.35349157,2939.2,2938.2,0.90850229]
[1769177913620,6.498,2939.6,2938.5,0.90850229]
[1769177913920,0.35347741,2939.5,2938.5,0.90850229]
[1769177914122,0.15114553,2939.7,2938.8,0.90850229]
[1769177914323,0.35340074,2939.6,2938.8,0.90850229]
[1769177914522,0.15114553,2939.7,2938.8,0.90850229]
[1769177914727,0.35339681,2939.6,2938.8,0.90850229]
[1769177914928,0.15114553,2939.7,2938.8,0.90850229]
[1769177915119,0.35339675,2939.6,2938.8,0.90850229]
[1769177915320,0.35339675,2939.6,2938.3,0.17039]
[1769177915321,0.90850229,2939.6,2938.3,0.17039]
[1769177915517,0.35335223,2939.5,2938.3,0.17039]
[1769177915717,0.15114553,2939.4,2938.3,0.17039]
[1769177915923,0.15114553,2939.2,2938.1,3.06682118]
[1769177916226,0.15114553,2939.2,2937.9,3.407]
[1769177916728,0.90850229,2939.0,2937.8,3.06682118]
[1769177916927,0.15114553,2938.9,2937.7,6.64424118]
[1769177917123,0.15114553,2938.9,2937.7,0.17042]
[1769177919127,0.15114553,2938.9,2937.6,3.0719286]
[1769177919523,0.90850229,2939.0,2937.6,3.0719286]
[1769177919524,0.15114553,2938.7,2937.6,3.0719286]
[1769177919724,0.15114553,2938.7,2937.6,0.00510742]
[1769177921925,1.05964782,2938.7,2937.6,0.00510742]
[1769177922131,0.15114553,2938.5,2937.6,0.00510742]
[1769177925031,0.15114553,2938.8,2937.6,0.00510742]
[1769177925234,0.50460756,2938.7,2937.6,0.00510742]
[1769177925532,0.15114553,2938.7,2937.6,0.91360971]
[1769177928834,0.15114553,2938.7,2937.6,0.00510742]
[1769177930034,0.17035,2939.0,2937.6,0.00510742]
[1769177930231,0.35332578,2938.9,2937.6,0.00510742]
[1769177930433,0.35332578,2938.8,2937.6,0.00510742]
[1769177930629,0.15114553,2939.1,2937.6,0.00510742]
[1769177930828,0.50444225,2939.0,2937.6,0.00510742]
[1769177931033,0.15114553,2938.8,2937.6,0.00510742]
[1769177931232,0.15114553,2938.6,2937.6,5.11710742]
[1769177933742,0.15114553,2939.1,2937.6,5.11710742]
[1769177933945,0.3532847,2939.0,2937.6,5.11710742]
[1769177934143,0.3532847,2938.9,2937.6,5.11710742]
[1769177934443,0.15114553,2939.1,2937.6,5.11710742]
[1769177934639,0.35326279,2939.0,2937.6,5.11710742]
[1769177934839,0.35326279,2938.9,2937.6,5.11710742]
[1769177935037,0.15114553,2939.1,2937.6,5.11710742]
[1769177935337,0.35326271,2939.0,2937.6,5.11710742]
[1769177935538,0.35326271,2938.9,2937.6,5.11710742]
[1769177935843,0.15114553,2938.8,2937.6,0.00510742]
[1769177936043,0.5044445,2938.7,2937.6,0.00510742]
[1769177936246,0.15114553,2938.7,2937.6,0.00510742]
[1769177936944,0.17035,2939.0,2937.6,0.00510742]
[1769177937141,0.3533158,2938.9,2937.6,0.00510742]
[1769177937339,0.3533158,2938.8,2937.6,0.00510742]
[1769177937540,0.15114553,2939.1,2937.6,0.17553742]
[1769177937741,0.15114553,2939.1,2937.6,3.2423586]
[1769177937938,0.15114553,2938.9,2937.6,3.2423586]
[1769177938141,0.15114553,2938.9,2937.6,0.17553742]
[1769177938541,0.15114553,2938.9,2937.6,0.00510742]
[1769177940240,0.15114553,2938.7,2937.6,0.00510742]
[1769177940441,0.15114553,2938.7,2937.6,5.13110742]
[1769177941350,0.15114553,2938.5,2937.6,0.00510742]
[1769177946350,0.35382795,2938.4,2937.6,0.00510742]
[1769177946653,0.15114553,2938.5,2937.6,0.00510742]
[1769177946850,0.35382159,2938.4,2937.6,0.00510742]
[1769177947046,0.50453418,2938.3,2937.4,0.00264104]
[1769177947246,0.15070925,2938.3,2937.4,0.00264104]
[1769177947651,0.49943292,2938.2,2937.4,0.00264104]
[1769177947855,0.14560183,2938.2,2937.4,0.00264104]
[1769177948043,0.35384879,2938.1,2937.4,0.00264104]
[1769177948248,0.14824287,2938.1,2936.9,5.127]
[1769177949255,0.14824287,2938.1,2936.9,5.13044636]
[1769177950357,0.14824287,2938.1,2936.9,5.13544636]
[1769177951550,0.14824287,2938.1,2936.9,8.20226754]
[1769177952351,0.14824287,2938.1,2936.9,5.13544636]
[1769177952552,0.00264104,2938.1,2937.0,0.90772622]
[1769177952954,0.00264104,2938.1,2937.0,3.9745474]
[1769177954250,0.00264104,2938.1,2937.0,3.06682118]
[1769177954456,0.14824287,2938.1,2936.9,5.30591636]
[1769177955558,0.14824287,2938.1,2936.9,0.17391636]
[1769177955762,0.14824287,2938.1,2937.0,5.148]
[1769177957457,0.14824287,2938.1,2936.9,0.17391636]
[1769177957658,0.14824287,2938.1,2937.0,5.153]
[1769177957955,0.17041,2938.0,2936.9,0.00344636]
[1769177958160,0.14560183,2937.5,2936.4,3.06682118]
[1769177958360,0.14560183,2937.5,2936.2,4.27630656]
[1769177958560,0.14560183,2937.3,2936.0,11.455]
[1769177958757,0.14560183,2937.3,2935.7,0.17054]
[1769177958758,0.14560183,2937.3,2935.8,3.06682118]
[1769177958954,0.14560183,2937.3,2935.9,5.157]
[1769177959357,0.14560183,2937.3,2935.9,11.46094291]
[1769177959561,0.00510742,2936.9,2935.9,11.46094291]
[1769177960263,0.00510742,2936.9,2935.9,11.46394291]
[1769177960658,0.15070925,2936.9,2935.9,0.00394291]
[1769177973466,0.32117925,2936.9,2935.9,0.00394291]
[1769177973667,0.14260361,2936.8,2935.9,0.00394291]
[1769177977574,0.14260361,2936.7,2935.2,6.47057]
[1769177978671,0.14260361,2936.7,2935.2,6.47410527]
[1769177979473,0.14260361,2936.7,2935.3,0.17056]
[1769177979869,0.14260361,2936.7,2935.2,6.30353527]
[1769177980769,0.14260361,2936.7,2935.2,0.00353527]
[1769177981178,0.14260361,2936.7,2935.2,6.30353527]
[1769177986385,0.35323238,2936.6,2935.2,6.30353527]
[1769177986582,0.14260361,2936.7,2935.2,6.30353527]
[1769177986783,0.00510742,2936.9,2935.3,0.14871715]
[1769177987387,0.35361362,2936.8,2935.4,6.47056]
[1769177987586,0.35361362,2936.7,2935.4,6.47056]
[1769177987887,0.00510742,2936.9,2935.4,6.47056]
[1769177988083,0.35361849,2936.8,2935.4,6.47056]
[1769177988384,0.35361849,2936.7,2935.4,6.47056]
[1769177988587,0.00510742,2936.9,2935.4,6.47056]
[1769177988781,1.28867674,2936.8,2935.4,6.47056]
[1769177988982,0.3537908,2936.7,2935.4,6.47056]
[1769177989180,0.00510742,2936.9,2935.4,6.47056]
[1769177989382,1.28890764,2936.8,2935.4,6.47056]
[1769177989584,0.35379058,2936.7,2935.4,6.47056]
[1769177989786,0.00510742,2936.9,2935.4,6.47056]
[1769177989988,1.28899935,2936.8,2935.4,6.47056]
[1769177990186,0.00510742,2936.9,2935.4,6.47056]
[1769177990187,0.35388225,2936.7,2935.4,6.47056]
[1769177990387,0.35395171,2936.6,2935.4,6.47056]
[1769177990587,0.14771103,2936.9,2935.4,6.47056]
[1769177990788,1.43191096,2936.8,2935.4,6.47056]
[1769177990991,1.28930735,2936.7,2935.5,0.90891234]
[1769177991192,0.35395817,2936.6,2935.5,0.90891234]
[1769177991391,0.14260361,2936.8,2935.5,0.90891234]
[1769177991592,1.28946119,2936.7,2935.5,0.90891234]
[1769177991790,0.3540131,2936.6,2935.5,0.90891234]
[1769177991989,0.14260361,2936.8,2935.5,0.90891234]
[1769177992192,1.2891239,2936.7,2935.5,0.90891234]
[1769177992392,0.35367601,2936.6,2935.5,0.90891234]
[1769177992692,0.14260361,2936.8,2935.5,0.90891234]
[1769177992893,1.28919901,2936.7,2935.5,0.90891234]
[1769177993094,0.35369612,2936.6,2935.5,0.90891234]
[1769177993292,0.14260361,2936.8,2935.5,0.90891234]
[1769177993494,1.28933414,2936.7,2935.5,0.90891234]
[1769177993697,0.35373446,2936.6,2935.8,0.90891234]
[1769177993995,0.00510742,2936.9,2935.8,0.90891234]
[1769177994191,1.28932439,2936.8,2935.8,0.90891234]
[1769177994384,0.3537317,2936.7,2935.8,0.90891234]
[1769177994582,0.3537317,2936.6,2935.8,0.90891234]
[1769177994895,0.00510742,2936.9,2935.8,0.90891234]
[1769177995094,1.28943667,2936.8,2935.8,0.90891234]
[1769177995294,0.35376384,2936.7,2935.8,0.90891234]
[1769177995593,0.35376384,2936.6,2935.8,0.90891234]
[1769177995794,0.00510742,2936.9,2935.8,0.90891234]
[1769177995996,1.28954239,2936.8,2935.8,0.90891234]
[1769177996193,0.35378117,2936.7,2935.8,0.90891234]
[1769177996394,0.00510742,2936.9,2935.8,0.90891234]
[1769177996594,0.93572403,2936.8,2935.8,0.90891234]
[1769177996797,0.00510742,2936.9,2935.8,0.90891234]
[1769177996997,0.9357205,2936.8,2935.8,0.90891234]
[1769177997198,0.00510742,2936.9,2935.8,0.90891234]
[1769177997497,1.28681222,2936.8,2935.8,0.90891234]
[1769177997697,0.35111918,2936.7,2935.8,0.90891234]
[1769177997896,0.00510742,2936.9,2935.8,0.90891234]
[1769177998099,1.28680259,2936.8,2935.8,0.90891234]
[1769177998299,0.35110963,2936.7,2935.8,0.90891234]
[1769177998503,0.00510742,2936.9,2935.8,0.90891234]
[1769177998797,1.28676358,2936.8,2935.8,0.90891234]
[1769177998997,0.351098,2936.7,2935.8,0.90891234]
[1769177999196,0.00510742,2936.9,2936.1,0.90891234]
[1769177999399,0.35107605,2936.8,2936.1,0.90891234]
[1769177999598,0.00510742,2936.9,2936.1,0.90891234]
[1769178005003,0.00510742,2936.9,2936.4,0.90891234]
[1769178006598,0.30884497,2937.6,2936.4,0.90891234]
[1769178006798,1.28397098,2937.5,2936.4,0.91401976]
[1769178007103,0.35043622,2937.4,2936.4,0.91401976]
[1769178007305,0.30884497,2937.6,2936.4,0.91401976]
[1769178007504,0.35043368,2937.5,2936.4,0.91401976]
[1769178007806,0.35043368,2937.4,2936.4,0.91401976]
[1769178008003,0.30884497,2937.6,2936.4,0.91401976]
[1769178008202,0.35039155,2937.5,2936.4,0.91401976]
[1769178008404,0.35039155,2937.4,2936.4,0.91401976]
[1769178008704,0.30884497,2937.6,2936.4,0.91401976]
[1769178008904,0.35039517,2937.5,2936.4,0.91401976]
[1769178009100,0.35039517,2937.4,2936.4,0.91401976]
[1769178009306,0.30884497,2937.6,2936.4,0.91401976]
[1769178009507,0.35036836,2937.5,2936.4,0.91401976]
[1769178009701,0.35036836,2937.4,2936.4,0.91401976]
[1769178009896,0.30884497,2937.6,2936.4,0.91401976]
[1769178010107,0.35035795,2937.5,2936.7,0.90891234]
[1769178010303,1.04855042,2937.3,2936.4,0.00510742]
[1769178010708,0.13963808,2937.2,2936.4,0.00510742]
[1769178011605,0.13963808,2937.0,2936.4,0.00510742]
[1769178011804,0.13963808,2936.6,2935.3,7.34312774]
[1769178012005,0.13963808,2936.6,2935.2,0.00353527]
[1769178012610,0.49011068,2936.5,2935.2,0.00353527]
[1769178012806,0.13963808,2936.5,2935.2,0.00353527]
[1769178017219,0.13963808,2936.5,2935.3,0.90891234]
[1769178017507,0.13963808,2936.5,2935.2,0.00353527]
[1769178017710,0.13963808,2936.5,2935.6,0.90891234]
[1769178017910,0.17048,2936.8,2935.6,0.90891234]
[1769178018112,0.35036981,2936.7,2935.6,0.90891234]
[1769178018310,0.31011808,2936.8,2935.6,0.90891234]
[1769178018512,0.35035324,2936.7,2935.6,0.90891234]
[1769178018815,0.31011808,2936.8,2935.6,0.90891234]
[1769178019117,0.35035324,2936.7,2935.6,0.90891234]
[1769178019308,0.31011808,2936.8,2935.6,0.90891234]
[1769178019501,0.35034729,2936.7,2935.6,0.90891234]
[1769178019708,0.13963808,2936.8,2935.6,0.90891234]
[1769178019904,0.13963808,2936.8,2935.4,0.90891234]
[1769178021911,0.90891234,2935.8,2935.2,3.07035645]
[1769178022111,0.35036467,2936.7,2934.3,0.17062]
[1769178022112,0.90891234,2935.5,2934.5,3.06682118]
[1769178022303,0.13963808,2935.4,2934.3,4.27630656]
[1769178022510,0.13963808,2935.4,2934.2,0.90891234]
[1769178022817,0.13963808,2935.7,2934.2,0.90891234]
[1769178023017,0.00510742,2935.1,2934.2,0.90891234]
[1769178023219,0.00942653,2935.1,2934.2,0.91254375]
[1769178025710,0.00942653,2935.1,2934.2,0.00363141]
[1769178029721,0.14906461,2935.1,2934.2,0.00363141]
[1769178032522,0.00942653,2935.1,2934.2,0.91254375]
[1769178036127,0.00942653,2935.1,2934.5,0.90891234]
[1769178036328,0.14030216,2935.7,2934.4,0.00510742]
[1769178036624,0.14030216,2935.4,2934.4,0.00510742]
[1769178037225,0.14454851,2935.4,2934.4,0.00510742]
[1769178051139,0.35107326,2935.3,2934.4,0.00510742]
[1769178051345,0.14454851,2935.4,2934.4,0.00510742]
[1769178051643,0.35107324,2935.3,2934.4,0.00510742]
[1769178051848,0.14454851,2935.4,2934.4,0.00510742]
[1769178052049,0.35107322,2935.3,2934.4,0.00510742]
[1769178052250,0.35107322,2935.2,2934.4,0.00510742]